[Event "Betsys MČR v online bleskovém šachu 2021"]
[Site "Chess.com"]
[Date "2021.04.17"]
[Round "13"]
[White "PavelNo"]
[Black "psvoboda72"]
[Result "1-0"]
[WhiteElo "1947"]
[BlackElo "1692"]
[TimeControl "180+1"]
[EndTime "11:12:27 PDT"]
[Termination "Uživatel PavelNo zvítězil na čas"]

1. e4 {[%clk 0:03:00.9]} 1... e5 {[%clk 0:02:56.4]} 2. Nf3 {[%clk 0:02:59.5]}
2... Nc6 {[%clk 0:02:54.3]} 3. Bb5 {[%clk 0:02:58.9]} 3... a6 {[%clk 0:02:53.8]}
4. Ba4 {[%clk 0:02:58.3]} 4... Nf6 {[%clk 0:02:53.7]} 5. d4 {[%clk 0:02:58.3]}
5... exd4 {[%clk 0:02:51.5]} 6. O-O {[%clk 0:02:58.1]} 6... Be7 {[%clk 0:02:47]}
7. Re1 {[%clk 0:02:57.7]} 7... O-O {[%clk 0:02:43.8]} 8. e5 {[%clk 0:02:57.6]}
8... Nd5 {[%clk 0:02:38.9]} 9. Bb3 {[%clk 0:02:56.4]} 9... Nb6 {[%clk
0:02:30.6]} 10. Nxd4 {[%clk 0:02:55.7]} 10... d5 {[%clk 0:02:24.2]} 11. Nxc6
{[%clk 0:02:38.7]} 11... bxc6 {[%clk 0:02:22.1]} 12. Nc3 {[%clk 0:02:35.2]}
12... Be6 {[%clk 0:02:15.8]} 13. Ne2 {[%clk 0:02:31.1]} 13... c5 {[%clk
0:02:09.5]} 14. c3 {[%clk 0:02:29.5]} 14... c4 {[%clk 0:01:59.7]} 15. Bc2 {[%clk
0:02:28.8]} 15... Nd7 {[%clk 0:01:58.4]} 16. Bf4 {[%clk 0:02:28]} 16... Bg5
{[%clk 0:01:52.2]} 17. Qd2 {[%clk 0:02:26.4]} 17... h6 {[%clk 0:01:43.3]} 18. b3
{[%clk 0:02:04.5]} 18... Nc5 {[%clk 0:01:36.2]} 19. bxc4 {[%clk 0:02:02.2]}
19... dxc4 {[%clk 0:01:35.3]} 20. Qxd8 {[%clk 0:01:54.9]} 20... Raxd8 {[%clk
0:01:32.9]} 21. Bxg5 {[%clk 0:01:52.9]} 21... hxg5 {[%clk 0:01:30.6]} 22. Red1
{[%clk 0:01:51.6]} 22... Nd3 {[%clk 0:01:29.6]} 23. Nd4 {[%clk 0:01:46.5]} 23...
Bg4 {[%clk 0:01:24.4]} 24. f3 {[%clk 0:01:45.6]} 24... Bh5 {[%clk 0:01:22.8]}
25. Rab1 {[%clk 0:01:35.3]} 25... Rfe8 {[%clk 0:01:21.5]} 26. Rb7 {[%clk
0:01:28.6]} 26... Rxe5 {[%clk 0:01:16.1]} 27. Nc6 {[%clk 0:01:26.4]} 27... Re2
{[%clk 0:01:08]} 28. Nxd8 {[%clk 0:01:22]} 28... Rxc2 {[%clk 0:01:03]} 29. Rxc7
{[%clk 0:01:21.3]} 29... Rxc3 {[%clk 0:01:00.6]} 30. Nc6 {[%clk 0:01:16.6]}
30... Bg6 {[%clk 0:00:58.8]} 31. Ne7+ {[%clk 0:01:15.1]} 31... Kh7 {[%clk
0:00:52.2]} 32. Nxg6 {[%clk 0:01:14.7]} 32... Kxg6 {[%clk 0:00:50.7]} 33. g3
{[%clk 0:01:08.7]} 33... Rc2 {[%clk 0:00:47.8]} 34. Rc6+ {[%clk 0:00:56.9]}
34... f6 {[%clk 0:00:44.2]} 35. Rxa6 {[%clk 0:00:56.3]} 35... c3 {[%clk
0:00:44.4]} 36. Rc6 {[%clk 0:00:54.8]} 36... Rd2 {[%clk 0:00:43.6]} 37. Rf1
{[%clk 0:00:49.2]} 37... c2 {[%clk 0:00:40.9]} 38. a4 {[%clk 0:00:43]} 38... Nb4
{[%clk 0:00:39.7]} 39. Rc8 {[%clk 0:00:38.8]} 39... Na2 {[%clk 0:00:31.3]} 40.
a5 {[%clk 0:00:36.9]} 40... c1=Q {[%clk 0:00:30.3]} 41. Rcxc1 {[%clk 0:00:35.4]}
41... Nxc1 {[%clk 0:00:29.3]} 42. Rxc1 {[%clk 0:00:35.2]} 42... Ra2 {[%clk
0:00:29.8]} 43. Rc5 {[%clk 0:00:34.8]} 43... Kf7 {[%clk 0:00:27.9]} 44. Rb5
{[%clk 0:00:30.5]} 44... Ke6 {[%clk 0:00:27.9]} 45. h4 {[%clk 0:00:28.8]} 45...
Kd6 {[%clk 0:00:25.4]} 46. hxg5 {[%clk 0:00:28.1]} 46... Ra1+ {[%clk 0:00:23.6]}
47. Kg2 {[%clk 0:00:27.3]} 47... Ra2+ {[%clk 0:00:24.2]} 48. Kh3 {[%clk
0:00:26.5]} 48... Ra1 {[%clk 0:00:22.3]} 49. gxf6 {[%clk 0:00:24.9]} 49... gxf6
{[%clk 0:00:22.6]} 50. Kg4 {[%clk 0:00:24.9]} 50... Ke7 {[%clk 0:00:18.2]} 51.
f4 {[%clk 0:00:24.4]} 51... Ra4 {[%clk 0:00:15.8]} 52. Kf5 {[%clk 0:00:23.5]}
52... Ra3 {[%clk 0:00:15.9]} 53. g4 {[%clk 0:00:23]} 53... Ra4 {[%clk
0:00:15.5]} 54. Rb7+ {[%clk 0:00:20.6]} 54... Kd6 {[%clk 0:00:13]} 55. Rb6+
{[%clk 0:00:19]} 55... Ke7 {[%clk 0:00:11.1]} 56. a6 {[%clk 0:00:18.5]} 56...
Ra5+ {[%clk 0:00:10.5]} 57. Kg6 {[%clk 0:00:18.3]} 57... Kd7 {[%clk 0:00:07.9]}
58. Kxf6 {[%clk 0:00:15.5]} 58... Kc7 {[%clk 0:00:08.4]} 59. Re6 {[%clk
0:00:14.5]} 59... Kd7 {[%clk 0:00:08.1]} 60. f5 {[%clk 0:00:14.3]} 60... Ra4
{[%clk 0:00:06.2]} 61. g5 {[%clk 0:00:14.2]} 61... Ra1 {[%clk 0:00:06]} 62. g6
{[%clk 0:00:14.1]} 62... Rg1 {[%clk 0:00:05.6]} 63. g7 {[%clk 0:00:14]} 63...
Rxg7 {[%clk 0:00:03.9]} 64. Kxg7 {[%clk 0:00:12.9]} 64... Kc7 {[%clk 0:00:02.5]}
65. f6 {[%clk 0:00:12.1]} 1-0

[Event "Betsys MČR v online bleskovém šachu 2021"]
[Site "Chess.com"]
[Date "2021.04.17"]
[Round "13"]
[White "Trener-Pokrocili"]
[Black "tucnak64"]
[Result "1/2-1/2"]
[WhiteElo "2263"]
[BlackElo "2152"]
[TimeControl "180+1"]
[EndTime "11:12:28 PDT"]
[Termination "Remíza – nedostatek materiálu"]

1. Nf3 {[%clk 0:03:00.9]} 1... c5 {[%clk 0:03:00.9]} 2. c4 {[%clk 0:03:00.9]}
2... Nc6 {[%clk 0:03:00.7]} 3. Nc3 {[%clk 0:03:00.8]} 3... g6 {[%clk 0:03:00.2]}
4. e3 {[%clk 0:03:01.1]} 4... Bg7 {[%clk 0:02:59.5]} 5. d4 {[%clk 0:03:01.3]}
5... d6 {[%clk 0:02:58.8]} 6. dxc5 {[%clk 0:03:01.1]} 6... dxc5 {[%clk
0:02:58.7]} 7. Qxd8+ {[%clk 0:03:01]} 7... Nxd8 {[%clk 0:02:58.8]} 8. Bd2 {[%clk
0:03:01.4]} 8... Nf6 {[%clk 0:02:57.6]} 9. O-O-O {[%clk 0:02:54]} 9... O-O
{[%clk 0:02:54.5]} 10. h3 {[%clk 0:02:49.2]} 10... Nc6 {[%clk 0:02:53.6]} 11.
Be2 {[%clk 0:02:46.3]} 11... h6 {[%clk 0:02:51.3]} 12. Kb1 {[%clk 0:02:32.8]}
12... Bf5+ {[%clk 0:02:48.2]} 13. Ka1 {[%clk 0:02:32.4]} 13... Rfd8 {[%clk
0:02:47.6]} 14. Bc1 {[%clk 0:02:32.3]} 14... Ne4 {[%clk 0:02:39.3]} 15. Nxe4
{[%clk 0:02:28.6]} 15... Bxe4 {[%clk 0:02:40.2]} 16. Rxd8+ {[%clk 0:02:27.5]}
16... Rxd8 {[%clk 0:02:39.4]} 17. Rd1 {[%clk 0:02:20.2]} 17... Rxd1 {[%clk
0:02:36.2]} 18. Bxd1 {[%clk 0:02:20.2]} 18... Bd3 {[%clk 0:02:35.8]} 19. Bb3
{[%clk 0:02:09.8]} 19... Bf1 {[%clk 0:02:32]} 20. Ne1 {[%clk 0:02:07.9]} 20...
Na5 {[%clk 0:02:26.4]} 21. h4 {[%clk 0:01:54]} 21... Nxc4 {[%clk 0:02:14.1]} 22.
g3 {[%clk 0:01:52.3]} 22... Nd6 {[%clk 0:02:09]} 23. Bc2 {[%clk 0:01:49.1]}
23... e6 {[%clk 0:02:00.1]} 24. Nd3 {[%clk 0:01:45.9]} 24... b6 {[%clk
0:01:58.2]} 25. Nf4 {[%clk 0:01:37.1]} 25... Kf8 {[%clk 0:01:49.5]} 26. Bd2
{[%clk 0:01:36]} 26... Ke7 {[%clk 0:01:48.9]} 27. Kb1 {[%clk 0:01:35]} 27... g5
{[%clk 0:01:39.1]} 28. hxg5 {[%clk 0:01:33]} 28... hxg5 {[%clk 0:01:38.8]} 29.
Nd3 {[%clk 0:01:32.7]} 29... Ne4 {[%clk 0:01:33.9]} 30. Be1 {[%clk 0:01:29.8]}
30... f5 {[%clk 0:01:33.3]} 31. Nc1 {[%clk 0:01:17.5]} 31... Nd6 {[%clk
0:01:22.9]} 32. Nb3 {[%clk 0:01:16.9]} 32... a5 {[%clk 0:01:19.9]} 33. Nd2
{[%clk 0:01:16.5]} 33... g4 {[%clk 0:01:15.7]} 34. Nxf1 {[%clk 0:01:15.6]} 34...
Nc4 {[%clk 0:01:13]} 35. Bc3 {[%clk 0:01:09.4]} 35... Bxc3 {[%clk 0:01:02.2]}
36. bxc3 {[%clk 0:01:09.2]} 36... Kf6 {[%clk 0:01:01]} 37. Bd3 {[%clk
0:01:05.9]} 37... Ne5 {[%clk 0:01:00]} 38. Be2 {[%clk 0:01:05.4]} 38... Ke7
{[%clk 0:00:44.3]} 39. a4 {[%clk 0:01:04.7]} 39... Kd6 {[%clk 0:00:38.6]} 40.
Nd2 {[%clk 0:01:02.6]} 40... Kd5 {[%clk 0:00:38.6]} 41. Kc2 {[%clk 0:01:00.5]}
41... c4 {[%clk 0:00:38.7]} 42. Nb1 {[%clk 0:00:57.3]} 42... Kc5 {[%clk
0:00:38.4]} 43. Na3 {[%clk 0:00:56.8]} 43... Kd5 {[%clk 0:00:37.9]} 44. Nb5
{[%clk 0:00:56.7]} 44... Kc5 {[%clk 0:00:30.3]} 45. Nd4 {[%clk 0:00:55.7]} 45...
Kd5 {[%clk 0:00:29.6]} 46. Kd2 {[%clk 0:00:54.8]} 46... Nd7 {[%clk 0:00:29.1]}
47. f3 {[%clk 0:00:50.8]} 47... gxf3 {[%clk 0:00:20.8]} 48. Bxf3+ {[%clk
0:00:50.7]} 48... Ke5 {[%clk 0:00:21.1]} 49. Nc6+ {[%clk 0:00:47.3]} 49... Kd6
{[%clk 0:00:20.6]} 50. Nd4 {[%clk 0:00:46.6]} 50... Nc5 {[%clk 0:00:19.9]} 51.
Nb5+ {[%clk 0:00:40.2]} 51... Ke5 {[%clk 0:00:18.7]} 52. Nd4 {[%clk 0:00:37.3]}
52... Nxa4 {[%clk 0:00:18.1]} 53. Nc6+ {[%clk 0:00:34.5]} 53... Kd6 {[%clk
0:00:17.6]} 54. Nd4 {[%clk 0:00:27.1]} 54... Nc5 {[%clk 0:00:16.7]} 55. e4
{[%clk 0:00:24.5]} 55... fxe4 {[%clk 0:00:16]} 56. Be2 {[%clk 0:00:23.3]} 56...
Kd5 {[%clk 0:00:14.9]} 57. g4 {[%clk 0:00:20.6]} 57... a4 {[%clk 0:00:13.3]} 58.
Kc2 {[%clk 0:00:17.9]} 58... Nb3 {[%clk 0:00:12.2]} 59. Kb2 {[%clk 0:00:16.4]}
59... Nxd4 {[%clk 0:00:11.1]} 60. cxd4 {[%clk 0:00:13.1]} 60... Kxd4 {[%clk
0:00:12]} 61. g5 {[%clk 0:00:13.1]} 61... Ke5 {[%clk 0:00:12.1]} 62. Bxc4 {[%clk
0:00:12.5]} 62... Kf5 {[%clk 0:00:12.1]} 63. g6 {[%clk 0:00:11.2]} 63... Kxg6
{[%clk 0:00:12.2]} 64. Bxe6 {[%clk 0:00:11.4]} 64... e3 {[%clk 0:00:12.6]} 65.
Bc4 {[%clk 0:00:10.6]} 65... Kf5 {[%clk 0:00:12]} 66. Ka3 {[%clk 0:00:10.8]}
66... Ke4 {[%clk 0:00:11.4]} 67. Kxa4 {[%clk 0:00:10.6]} 67... Kf3 {[%clk
0:00:11.6]} 68. Kb5 {[%clk 0:00:10.5]} 68... e2 {[%clk 0:00:12]} 69. Bxe2+
{[%clk 0:00:10.5]} 69... Kxe2 {[%clk 0:00:12.9]} 70. Kxb6 {[%clk 0:00:10.9]}
1/2-1/2

[Event "Betsys MČR v online bleskovém šachu 2021"]
[Site "Chess.com"]
[Date "2021.04.17"]
[Round "13"]
[White "karimaster100"]
[Black "HonzaVykouk"]
[Result "1/2-1/2"]
[WhiteElo "2351"]
[BlackElo "2677"]
[TimeControl "180+1"]
[EndTime "11:12:33 PDT"]
[Termination "Remíza opakováním pozice"]

1. Nf3 {[%clk 0:03:00.9]} 1... Nf6 {[%clk 0:02:59.4]} 2. g3 {[%clk 0:03:00.9]}
2... g6 {[%clk 0:03:00]} 3. b3 {[%clk 0:03:00.7]} 3... Bg7 {[%clk 0:03:00.9]} 4.
Bb2 {[%clk 0:03:01.1]} 4... O-O {[%clk 0:03:01.6]} 5. Bg2 {[%clk 0:03:01.3]}
5... d6 {[%clk 0:03:01.7]} 6. d4 {[%clk 0:03:00.9]} 6... c6 {[%clk 0:03:00.9]}
7. O-O {[%clk 0:03:00.7]} 7... a5 {[%clk 0:03:01.3]} 8. a3 {[%clk 0:02:55.5]}
8... a4 {[%clk 0:02:56.8]} 9. b4 {[%clk 0:02:54]} 9... d5 {[%clk 0:02:54.6]} 10.
Nbd2 {[%clk 0:02:52.4]} 10... b5 {[%clk 0:02:52.2]} 11. Ne1 {[%clk 0:02:47.1]}
11... Nbd7 {[%clk 0:02:46.9]} 12. Nd3 {[%clk 0:02:47.4]} 12... Nb6 {[%clk
0:02:47.2]} 13. Ne5 {[%clk 0:02:36.6]} 13... Qc7 {[%clk 0:02:43]} 14. e3 {[%clk
0:02:23.2]} 14... Nfd7 {[%clk 0:02:42.9]} 15. f4 {[%clk 0:02:17.7]} 15... f6
{[%clk 0:02:42.5]} 16. Nd3 {[%clk 0:02:16.1]} 16... Bb7 {[%clk 0:02:37.9]} 17.
Nc5 {[%clk 0:02:14.3]} 17... Nxc5 {[%clk 0:02:35.2]} 18. dxc5 {[%clk 0:02:03.3]}
18... Nd7 {[%clk 0:02:35.7]} 19. e4 {[%clk 0:02:01.2]} 19... e6 {[%clk 0:02:27]}
20. Qe2 {[%clk 0:01:57.3]} 20... Rae8 {[%clk 0:02:26.4]} 21. Rae1 {[%clk
0:01:57]} 21... e5 {[%clk 0:02:25.7]} 22. f5 {[%clk 0:01:56.6]} 22... gxf5
{[%clk 0:01:57.3]} 23. Rxf5 {[%clk 0:01:54.6]} 23... Bc8 {[%clk 0:01:29.9]} 24.
Ref1 {[%clk 0:01:53.6]} 24... d4 {[%clk 0:01:23.7]} 25. R5f2 {[%clk 0:01:48.3]}
25... Rf7 {[%clk 0:01:22.6]} 26. Bc1 {[%clk 0:01:46.7]} 26... Nf8 {[%clk
0:01:22.8]} 27. Qh5 {[%clk 0:01:41.3]} 27... Ng6 {[%clk 0:01:17.9]} 28. Bh3
{[%clk 0:01:35.9]} 28... Bxh3 {[%clk 0:01:13.8]} 29. Qxh3 {[%clk 0:01:35.6]}
29... Qd7 {[%clk 0:01:14.5]} 30. Qxd7 {[%clk 0:01:32.4]} 30... Rxd7 {[%clk
0:01:15.4]} 31. Rf3 {[%clk 0:01:32.5]} 31... Rc8 {[%clk 0:01:10.1]} 32. Rd3
{[%clk 0:01:28.4]} 32... Rcd8 {[%clk 0:01:09.8]} 33. Rd1 {[%clk 0:01:19.9]}
33... Kf7 {[%clk 0:01:09.5]} 34. Nf3 {[%clk 0:01:08.6]} 34... Ne7 {[%clk
0:01:00.7]} 35. Nh4 {[%clk 0:01:05.8]} 35... Kg8 {[%clk 0:00:47.1]} 36. Kg2
{[%clk 0:01:05.4]} 36... f5 {[%clk 0:00:37.8]} 37. Kf3 {[%clk 0:00:58.1]} 37...
fxe4+ {[%clk 0:00:35.7]} 38. Kxe4 {[%clk 0:00:58]} 38... Nd5 {[%clk 0:00:36.4]}
39. Bd2 {[%clk 0:00:50.5]} 39... Rf8 {[%clk 0:00:14.9]} 40. Rf3 {[%clk
0:00:31.6]} 40... Nf6+ {[%clk 0:00:12.5]} 41. Rxf6 {[%clk 0:00:31.5]} 41... Bxf6
{[%clk 0:00:11.9]} 42. Nf5 {[%clk 0:00:30.8]} 42... Kf7 {[%clk 0:00:11.9]} 43.
g4 {[%clk 0:00:28.5]} 43... Ke6 {[%clk 0:00:11.7]} 44. h4 {[%clk 0:00:26.3]}
44... Rg8 {[%clk 0:00:10.5]} 45. Rg1 {[%clk 0:00:25.1]} 45... Be7 {[%clk
0:00:05.4]} 46. g5 {[%clk 0:00:23.2]} 46... Rf8 {[%clk 0:00:04.2]} 47. Ng7+
{[%clk 0:00:20.9]} 47... Kf7 {[%clk 0:00:04.1]} 48. Nf5 {[%clk 0:00:20.5]} 48...
Ke6 {[%clk 0:00:03.9]} 49. Ng7+ {[%clk 0:00:20.4]} 49... Kf7 {[%clk 0:00:04.5]}
50. Nf5 {[%clk 0:00:19.6]} 50... Kg6 {[%clk 0:00:05.1]} 51. Ng3 {[%clk
0:00:16.8]} 51... d3 {[%clk 0:00:04.4]} 52. h5+ {[%clk 0:00:16.8]} 52... Kg7
{[%clk 0:00:04.5]} 53. c3 {[%clk 0:00:15.9]} 53... Kg8 {[%clk 0:00:04]} 54. Nf5
{[%clk 0:00:15.6]} 54... Bd8 {[%clk 0:00:03.5]} 55. g6 {[%clk 0:00:15.5]} 55...
hxg6 {[%clk 0:00:04.1]} 56. hxg6 {[%clk 0:00:15.2]} 56... Re8 {[%clk 0:00:03.7]}
57. Rh1 {[%clk 0:00:12.6]} 57... Bf6 {[%clk 0:00:04]} 58. Rh3 {[%clk 0:00:11.2]}
58... Bg7 {[%clk 0:00:03.7]} 59. Rh1 {[%clk 0:00:10.5]} 59... Re6 {[%clk
0:00:03.8]} 60. Rg1 {[%clk 0:00:09.8]} 60... Bf6 {[%clk 0:00:04]} 61. Rg4 {[%clk
0:00:08.9]} 61... Bg7 {[%clk 0:00:04.5]} 62. Rg2 {[%clk 0:00:08.1]} 62... Bf6
{[%clk 0:00:04.1]} 63. Rg4 {[%clk 0:00:07.6]} 63... Bg7 {[%clk 0:00:05]} 64. Rg2
{[%clk 0:00:07.7]} 64... Bf6 {[%clk 0:00:05.5]} 65. Rg4 {[%clk 0:00:07.6]}
1/2-1/2

[Event "Betsys MČR v online bleskovém šachu 2021"]
[Site "Chess.com"]
[Date "2021.04.17"]
[Round "13"]
[White "Tomasn2003"]
[Black "vadoto"]
[Result "1-0"]
[WhiteElo "1162"]
[BlackElo "1336"]
[TimeControl "180+1"]
[EndTime "11:12:33 PDT"]
[Termination "Uživatel Tomasn2003 zvítězil na čas"]

1. b3 {[%clk 0:03:00.9]} 1... e5 {[%clk 0:02:58.6]} 2. Bb2 {[%clk 0:03:01.2]}
2... Nc6 {[%clk 0:02:58.1]} 3. e3 {[%clk 0:03:01.4]} 3... d5 {[%clk 0:02:56.7]}
4. Bb5 {[%clk 0:03:00.9]} 4... Bd6 {[%clk 0:02:53.2]} 5. Nf3 {[%clk 0:03:00.1]}
5... e4 {[%clk 0:02:52.5]} 6. Bxg7 {[%clk 0:02:58.2]} 6... exf3 {[%clk
0:02:41.3]} 7. Qxf3 {[%clk 0:02:55.1]} 7... Be5 {[%clk 0:02:35.8]} 8. Bxc6+
{[%clk 0:02:53.5]} 8... bxc6 {[%clk 0:02:32.5]} 9. Bxe5 {[%clk 0:02:53.5]} 9...
f6 {[%clk 0:02:30]} 10. Bb2 {[%clk 0:02:47.6]} 10... Be6 {[%clk 0:02:22.9]} 11.
O-O {[%clk 0:02:43.7]} 11... Qe7 {[%clk 0:02:18.3]} 12. d3 {[%clk 0:02:34.3]}
12... O-O-O {[%clk 0:02:13.4]} 13. h3 {[%clk 0:02:32.1]} 13... Rf8 {[%clk
0:02:12.6]} 14. c4 {[%clk 0:02:24.4]} 14... dxc4 {[%clk 0:02:11.2]} 15. dxc4
{[%clk 0:02:19.5]} 15... Bd7 {[%clk 0:02:10.5]} 16. Nd2 {[%clk 0:02:10.6]} 16...
Nh6 {[%clk 0:02:05.2]} 17. Ne4 {[%clk 0:02:04.2]} 17... Bf5 {[%clk 0:01:54.1]}
18. Ng3 {[%clk 0:01:53.7]} 18... Bd3 {[%clk 0:01:48.2]} 19. Rfd1 {[%clk
0:01:46.4]} 19... Qd6 {[%clk 0:01:17.7]} 20. Rd2 {[%clk 0:01:40]} 20... Rf7
{[%clk 0:01:14.1]} 21. Rad1 {[%clk 0:01:36.4]} 21... Rd8 {[%clk 0:01:12.5]} 22.
Rxd3 {[%clk 0:01:32.4]} 22... Qxd3 {[%clk 0:00:42.4]} 23. Rxd3 {[%clk
0:01:31.5]} 23... Rxd3 {[%clk 0:00:42.5]} 24. Qxc6 {[%clk 0:01:22.2]} 24... Rd6
{[%clk 0:00:40.1]} 25. Qa8+ {[%clk 0:01:16.2]} 25... Kd7 {[%clk 0:00:38.5]} 26.
Qxa7 {[%clk 0:01:11.8]} 26... Rd1+ {[%clk 0:00:35.6]} 27. Kh2 {[%clk 0:01:10.2]}
27... Rd2 {[%clk 0:00:29.4]} 28. Qa4+ {[%clk 0:01:04.3]} 28... Kd8 {[%clk
0:00:25.3]} 29. Qa8+ {[%clk 0:00:56]} 29... Kd7 {[%clk 0:00:25.3]} 30. Qa4+
{[%clk 0:00:49.2]} 30... Kd8 {[%clk 0:00:24.7]} 31. Bc3 {[%clk 0:00:46.4]} 31...
Rxf2 {[%clk 0:00:23.3]} 32. Qa8+ {[%clk 0:00:40.1]} 32... Kd7 {[%clk 0:00:22.8]}
33. Qd5+ {[%clk 0:00:39.7]} 33... Ke8 {[%clk 0:00:21.7]} 34. Qe6+ {[%clk
0:00:36.2]} 34... Kf8 {[%clk 0:00:21.1]} 35. Bb4+ {[%clk 0:00:32.1]} 35... Kg8
{[%clk 0:00:19.7]} 36. Be1 {[%clk 0:00:24.4]} 36... Rxa2 {[%clk 0:00:18]} 37.
Qe8+ {[%clk 0:00:20.6]} 37... Kg7 {[%clk 0:00:17.9]} 38. Qc6 {[%clk 0:00:19]}
38... Ra1 {[%clk 0:00:15]} 39. Bc3 {[%clk 0:00:16.8]} 39... Rc1 {[%clk
0:00:14.7]} 40. Ne4 {[%clk 0:00:15.5]} 40... Rf1 {[%clk 0:00:12.5]} 41. Bxf6+
{[%clk 0:00:14.6]} 41... R7xf6 {[%clk 0:00:10.9]} 42. Nxf6 {[%clk 0:00:14.6]}
42... Rxf6 {[%clk 0:00:10.2]} 43. Qxc7+ {[%clk 0:00:14.9]} 43... Rf7 {[%clk
0:00:10]} 44. Qg3+ {[%clk 0:00:14.8]} 44... Kf8 {[%clk 0:00:09.3]} 45. Qb8+
{[%clk 0:00:14.3]} 45... Kg7 {[%clk 0:00:09.3]} 46. Qg3+ {[%clk 0:00:14]} 46...
Kf8 {[%clk 0:00:09.3]} 47. b4 {[%clk 0:00:14.4]} 47... Nf5 {[%clk 0:00:08.1]}
48. Qf4 {[%clk 0:00:12.3]} 48... Ne7 {[%clk 0:00:06.4]} 49. Qxf7+ {[%clk
0:00:11.8]} 49... Kxf7 {[%clk 0:00:06.2]} 50. Kg3 {[%clk 0:00:12]} 50... Ke6
{[%clk 0:00:06.2]} 51. c5 {[%clk 0:00:11.3]} 51... Kd5 {[%clk 0:00:06.2]} 52.
Kf4 {[%clk 0:00:09]} 52... Kc4 {[%clk 0:00:06.1]} 53. g4 {[%clk 0:00:09.2]}
53... Kxb4 {[%clk 0:00:05.9]} 54. h4 {[%clk 0:00:10.1]} 54... Kxc5 {[%clk
0:00:06]} 55. g5 {[%clk 0:00:11]} 55... Kd6 {[%clk 0:00:05.6]} 56. h5 {[%clk
0:00:09.4]} 56... Ke6 {[%clk 0:00:05.3]} 57. e4 {[%clk 0:00:08.7]} 57... Kf7
{[%clk 0:00:04.7]} 58. Ke5 {[%clk 0:00:04]} 58... Kg7 {[%clk 0:00:03.7]} 59. Ke6
{[%clk 0:00:03.1]} 59... Ng8 {[%clk 0:00:03.5]} 60. Kf5 {[%clk 0:00:01.9]} 60...
h6 {[%clk 0:00:03.5]} 61. g6 {[%clk 0:00:01.5]} 61... Ne7+ {[%clk 0:00:02.9]}
62. Ke6 {[%clk 0:00:01.2]} 62... Ng8 {[%clk 0:00:02.5]} 63. e5 {[%clk
0:00:01.5]} 1-0

[Event "Betsys MČR v online bleskovém šachu 2021"]
[Site "Chess.com"]
[Date "2021.04.17"]
[Round "13"]
[White "Naty139"]
[Black "elftom"]
[Result "1-0"]
[WhiteElo "2207"]
[BlackElo "1966"]
[TimeControl "180+1"]
[EndTime "11:12:34 PDT"]
[Termination "Uživatel Naty139 zvítězil po vzdání soupeře"]

1. e4 {[%clk 0:03:00.9]} 1... c5 {[%clk 0:02:59.5]} 2. Nf3 {[%clk 0:03:00.7]}
2... d6 {[%clk 0:02:55.8]} 3. Bb5+ {[%clk 0:02:59.4]} 3... Nd7 {[%clk
0:02:54.9]} 4. O-O {[%clk 0:02:57.9]} 4... a6 {[%clk 0:02:54.7]} 5. Bxd7+ {[%clk
0:02:57.8]} 5... Bxd7 {[%clk 0:02:54.5]} 6. d4 {[%clk 0:02:58.7]} 6... cxd4
{[%clk 0:02:54.1]} 7. Qxd4 {[%clk 0:02:58.4]} 7... Nf6 {[%clk 0:02:54.3]} 8. c4
{[%clk 0:02:58.4]} 8... g6 {[%clk 0:02:52.1]} 9. Nc3 {[%clk 0:02:58.1]} 9... Bg7
{[%clk 0:02:51.9]} 10. a4 {[%clk 0:02:39.9]} 10... O-O {[%clk 0:02:50.8]} 11. a5
{[%clk 0:02:35.4]} 11... Rc8 {[%clk 0:02:50.3]} 12. Qd3 {[%clk 0:02:29.3]} 12...
Qc7 {[%clk 0:02:42.6]} 13. Nd2 {[%clk 0:02:28.2]} 13... Bc6 {[%clk 0:02:38.8]}
14. f3 {[%clk 0:02:25]} 14... e6 {[%clk 0:02:38.5]} 15. Rd1 {[%clk 0:02:18.3]}
15... Rfd8 {[%clk 0:02:38.5]} 16. b3 {[%clk 0:01:59]} 16... Nd7 {[%clk
0:02:37.7]} 17. Bb2 {[%clk 0:01:55.8]} 17... b6 {[%clk 0:02:33.7]} 18. axb6
{[%clk 0:01:54.6]} 18... Nxb6 {[%clk 0:02:33.4]} 19. Rxa6 {[%clk 0:01:51.9]}
19... Bb7 {[%clk 0:02:31.5]} 20. Ra7 {[%clk 0:01:45]} 20... Nxc4 {[%clk
0:02:02.6]} 21. Nxc4 {[%clk 0:01:38.9]} 21... Qc5+ {[%clk 0:02:01.7]} 22. Qe3
{[%clk 0:01:30.5]} 22... Bxc3 {[%clk 0:01:46.4]} 23. Qxc5 {[%clk 0:01:13.4]}
23... Rxc5 {[%clk 0:01:42.6]} 24. Rxb7 {[%clk 0:01:03.3]} 24... Bxb2 {[%clk
0:01:37.8]} 25. Nxb2 {[%clk 0:01:03.1]} 25... d5 {[%clk 0:01:34.8]} 26. exd5
{[%clk 0:01:02.5]} 26... exd5 {[%clk 0:01:34.6]} 27. Nd3 {[%clk 0:01:00.5]}
27... Rc3 {[%clk 0:01:33.8]} 28. Kf2 {[%clk 0:00:54.8]} 28... d4 {[%clk
0:01:33.3]} 29. Rd2 {[%clk 0:00:52.3]} 29... Re8 {[%clk 0:01:31.1]} 30. b4
{[%clk 0:00:47.5]} 30... Rb3 {[%clk 0:01:26.2]} 31. Nc5 {[%clk 0:00:43.6]} 31...
Rb1 {[%clk 0:01:25.5]} 32. Nd7 {[%clk 0:00:42.8]} 32... Kg7 {[%clk 0:01:22.5]}
33. b5 {[%clk 0:00:39.4]} 33... Ree1 {[%clk 0:01:12.5]} 34. b6 {[%clk
0:00:36.8]} 34... h5 {[%clk 0:01:11.1]} 35. h4 {[%clk 0:00:35.4]} 35... Rb4
{[%clk 0:01:07]} 36. Rc7 {[%clk 0:00:25.5]} 36... Reb1 {[%clk 0:01:06.1]} 37.
Rc6 {[%clk 0:00:25.8]} 37... R1b3 {[%clk 0:01:00.9]} 38. Kg3 {[%clk 0:00:25.1]}
38... Rb1 {[%clk 0:00:59.3]} 39. Kf4 {[%clk 0:00:23.6]} 39... f5 {[%clk
0:00:57.5]} 40. Kg5 {[%clk 0:00:20.7]} 40... Kf7 {[%clk 0:00:38.6]} 41. Rxg6
{[%clk 0:00:20.9]} 41... Ke7 {[%clk 0:00:37]} 42. Rg7+ {[%clk 0:00:21.3]} 42...
Ke6 {[%clk 0:00:36.4]} 43. Re2+ {[%clk 0:00:20.8]} 43... Kd6 {[%clk 0:00:36.2]}
44. Nf6 {[%clk 0:00:18.1]} 44... Rxb6 {[%clk 0:00:34.4]} 45. Nxh5 {[%clk
0:00:17.8]} 45... d3 {[%clk 0:00:34.3]} 46. Rg6+ {[%clk 0:00:17.7]} 46... Kd5
{[%clk 0:00:33.7]} 47. Rd2 {[%clk 0:00:18.6]} 47... Kd4 {[%clk 0:00:33.1]} 48.
Rxb6 {[%clk 0:00:17.6]} 48... Rxb6 {[%clk 0:00:32.5]} 49. Nf4 {[%clk 0:00:18.3]}
49... Ke3 {[%clk 0:00:32.3]} 50. Rxd3+ {[%clk 0:00:18.4]} 50... Kf2 {[%clk
0:00:29.2]} 51. h5 {[%clk 0:00:18.9]} 51... Kg3 {[%clk 0:00:28.8]} 52. Rd5
{[%clk 0:00:18.8]} 52... Rb4 {[%clk 0:00:28.2]} 53. Rxf5 {[%clk 0:00:19.1]}
53... Rb6 {[%clk 0:00:25.8]} 54. h6 {[%clk 0:00:19.3]} 54... Rb7 {[%clk
0:00:24.5]} 55. Kg6 {[%clk 0:00:18.5]} 55... Rb6+ {[%clk 0:00:19.2]} 56. Rf6
{[%clk 0:00:18.5]} 56... Rb7 {[%clk 0:00:19.3]} 57. h7 {[%clk 0:00:18.1]} 57...
Rb8 {[%clk 0:00:19]} 58. Kg7 {[%clk 0:00:17.6]} 58... Kh4 {[%clk 0:00:17.2]} 59.
h8=Q+ {[%clk 0:00:15.9]} 59... Rxh8 {[%clk 0:00:16.3]} 60. Kxh8 {[%clk
0:00:16.8]} 60... Kg5 {[%clk 0:00:15.5]} 61. Nd5 {[%clk 0:00:17.7]} 61... Kh5
{[%clk 0:00:14.2]} 62. Rf8 {[%clk 0:00:17.8]} 62... Kg6 {[%clk 0:00:13.8]} 63.
Kg8 {[%clk 0:00:17.9]} 63... Kg5 {[%clk 0:00:13.5]} 64. g3 {[%clk 0:00:18.2]}
64... Kh5 {[%clk 0:00:13.2]} 65. f4 {[%clk 0:00:18.2]} 65... Kg4 {[%clk
0:00:13]} 66. f5 {[%clk 0:00:19.1]} 66... Kg5 {[%clk 0:00:12.8]} 67. f6 {[%clk
0:00:20]} 67... Kg6 {[%clk 0:00:12.8]} 68. f7 {[%clk 0:00:20.9]} 68... Kg5
{[%clk 0:00:12.8]} 69. Re8 {[%clk 0:00:21.5]} 69... Kg4 {[%clk 0:00:12.7]} 70.
f8=Q {[%clk 0:00:22]} 70... Kh3 {[%clk 0:00:12.8]} 71. Re7 {[%clk 0:00:22.2]}
1-0